bitfinex-derivatives/quotes_ETHF0:USTF0_20260201
["timestamp","ask_amount","ask_price","bid_price","bid_amount"]
[1769973830750,2.42314393,2342.9,2341.5,2.38471288]
[1769973831751,2.42856713,2342.9,2341.5,2.38471288]
[1769973831950,2.42856713,2342.9,2341.7,2.38471288]
[1769973832950,2.64217713,2342.9,2341.5,3.207]
[1769973833344,2.64217713,2342.9,2341.6,2.38471288]
[1769973835949,2.42314393,2342.6,2341.3,2.38471288]
[1769973836248,2.42314393,2342.6,2341.4,2.38471288]
[1769973840653,2.42314393,2342.6,2341.1,0.00448799]
[1769973841056,2.42314393,2342.1,2341.1,2.38920087]
[1769973841552,2.42314393,2342.4,2341.1,2.38920087]
[1769973843549,0.0054232,2342.9,2342.0,2.38471288]
[1769973843849,2.42314393,2343.6,2342.4,2.38471288]
[1769973844754,2.42772357,2343.6,2342.4,2.38471288]
[1769973844954,2.42314393,2343.1,2342.0,2.38471288]
[1769973846054,2.42314393,2343.5,2342.0,2.38471288]
[1769973848856,2.42314393,2343.5,2341.7,2.29623268]
[1769973849056,2.26887569,2343.1,2341.7,2.29623268]
[1769973849648,2.48246569,2343.1,2341.7,2.29623268]
[1769973851752,2.26887569,2343.1,2341.8,2.63211779]
[1769973851948,2.26887569,2343.1,2341.9,2.29623268]
[1769973853256,2.27345533,2343.6,2342.3,2.29623268]
[1769973857654,2.27345533,2343.6,2342.5,2.29623268]
[1769973858655,0.00457964,2343.6,2342.5,2.29623268]
[1769973858857,2.27345533,2343.6,2342.5,2.29623268]
[1769973861156,2.48239569,2343.9,2342.5,2.29623268]
[1769973862261,2.48578522,2343.9,2342.5,2.29623268]
[1769973862563,2.26887569,2343.5,2342.0,2.29623268]
[1769973862959,2.26887569,2343.2,2341.9,3.845]
[1769973863364,2.26887569,2343.2,2341.9,6.14123268]
[1769973865862,2.26887569,2343.2,2342.0,2.29623268]
[1769973868365,2.26887569,2343.6,2342.0,2.29623268]
[1769973870068,2.48242569,2343.6,2342.0,2.29623268]
[1769973870667,2.48243569,2343.4,2342.0,2.29623268]
[1769973872566,2.26887569,2343.0,2342.0,2.29623268]
[1769973872767,2.26887569,2342.7,2341.6,2.29623268]
[1769973875371,2.26887569,2342.4,2341.1,0.00448799]
[1769973875571,2.26887569,2342.1,2341.1,2.30072067]
[1769973875768,2.27313274,2342.1,2341.1,2.30072067]
[1769973876265,2.27313274,2342.1,2341.1,0.00448799]
[1769973877272,2.27313274,2342.1,2341.1,2.30072067]
[1769973879272,2.48681274,2342.1,2341.1,2.30072067]
[1769973879468,2.48681274,2342.1,2341.1,0.00448799]
[1769973882975,2.48681274,2342.1,2341.1,2.48022476]
[1769973892692,12.58858382,2343.0,2341.6,2.39809959]
[1769973892693,2.49034587,2343.0,2341.6,2.39809959]
[1769973892992,2.49034587,2343.6,2341.8,2.39809959]
[1769973893191,2.49034587,2343.6,2341.9,2.39809959]
[1769973893390,2.49034587,2343.4,2341.9,2.39809959]
[1769973893592,2.49034587,2343.2,2342.0,2.39809959]
[1769973896190,2.70392587,2343.2,2342.0,2.39809959]
[1769973896489,2.49034587,2342.5,2341.3,2.39809959]
[1769973900394,2.49034587,2342.4,2341.3,2.39809959]
[1769973900599,2.49034587,2342.2,2341.3,2.39809959]
[1769973900801,2.506,2343.3,2341.2,3.846]
[1769973900802,2.49034587,2342.0,2341.2,3.846]
[1769973901099,2.70403587,2342.0,2340.7,2.39809959]
[1769973901293,2.49034587,2341.9,2340.7,2.39809959]
[1769973901493,2.49034587,2341.8,2340.7,2.39809959]
[1769973901697,3.846,2342.4,2340.4,2.39809959]
[1769973901698,2.49034587,2341.4,2340.4,2.39809959]
[1769973902099,2.49034587,2341.4,2340.4,2.40269767]
[1769973902100,2.49034587,2341.3,2340.4,2.40269767]
[1769973902402,6.76074587,2341.3,2340.4,2.40269767]
[1769973902602,4.2704,2341.2,2340.4,2.40269767]
[1769973903199,2.49034587,2341.3,2340.4,2.40269767]
[1769973904602,0.00322973,2341.4,2340.4,2.40269767]
[1769973906002,2.49034587,2342.0,2340.4,2.40269767]
[1769973906205,2.70401587,2342.3,2340.6,2.39809959]
[1769973906904,2.70401587,2342.3,2340.7,2.39809959]
[1769973907105,2.70882819,2342.3,2340.9,2.39809959]
[1769973908701,2.70882819,2342.3,2340.9,6.24509959]
[1769973908702,0.00481232,2342.3,2340.9,6.24509959]
[1769973908903,2.69458771,2342.9,2341.3,2.45043728]
[1769973909404,2.48097771,2342.8,2341.3,2.45043728]
[1769973909601,2.48097771,2342.8,2341.3,2.66418728]
[1769973909803,0.00349995,2342.8,2341.6,2.45043728]
[1769973910004,0.00349995,2342.8,2341.8,2.45043728]
[1769973911100,2.48097771,2343.4,2342.0,2.45043728]
[1769973911702,3.847,2343.6,2342.0,2.45043728]
[1769973911902,10.59837771,2343.6,2342.0,2.45043728]
[1769973912104,10.59999416,2343.6,2342.0,2.45043728]
[1769973912303,2.48259416,2343.6,2342.0,2.66412728]
[1769973912602,0.00161645,2343.6,2342.2,4.99558556]
[1769973912801,0.00161645,2343.6,2342.3,2.45043728]
[1769973913004,0.00161645,2343.6,2342.5,2.45043728]
[1769973913401,2.48097771,2344.2,2342.5,2.45043728]
[1769973913607,2.48097771,2344.1,2342.5,2.45043728]
[1769973913909,6.75137771,2344.1,2342.5,2.45043728]
[1769973914407,6.75137771,2344.1,2342.5,2.66407728]
[1769973915607,0.21348,2344.3,2342.5,2.66407728]
[1769973915608,2.48097771,2343.6,2342.5,2.45043728]
[1769973916005,4.2704,2343.3,2342.5,2.45043728]
[1769973916504,4.2704,2343.1,2342.5,2.45043728]
[1769973916708,4.2704,2343.2,2342.5,2.45043728]
[1769973917107,4.2704,2343.1,2342.5,2.45043728]
[1769973917309,4.2704,2343.2,2342.5,2.45043728]
[1769973917810,4.2704,2343.1,2342.5,2.45043728]
[1769973918011,4.2704,2343.2,2342.5,2.45043728]
[1769973918213,3.127,2344.5,2342.2,3.85023106]
[1769973918214,2.48097771,2343.1,2342.2,0.00423106]
[1769973918506,4.2704,2342.3,2341.6,2.45043728]
[1769973918706,1.10116964,2342.5,2341.6,2.45043728]
[1769973918908,4.2704,2342.4,2341.6,2.45043728]
[1769973919409,4.27463106,2342.4,2341.6,2.45354349]
[1769973920405,4.2704,2342.3,2341.6,2.45354349]
[1769973921110,4.2704,2341.9,2341.3,4.95643728]
[1769973921311,6.75137771,2342.1,2341.3,4.95643728]
[1769973921611,4.2704,2341.9,2341.4,2.45043728]
[1769973921811,4.2704,2342.1,2341.4,2.45043728]
[1769973922011,4.2704,2342.0,2341.4,2.45482599]
[1769973922407,4.2704,2341.8,2341.4,2.45482599]
[1769973922603,4.2704,2342.0,2341.4,2.45482599]
[1769973923008,4.2704,2341.8,2341.4,2.45482599]
[1769973923208,4.2704,2342.0,2341.4,2.45482599]
[1769973923710,4.2704,2341.8,2341.4,2.45482599]
[1769973923909,4.2704,2342.0,2341.4,2.45482599]
[1769973924411,4.2704,2341.8,2341.4,2.45482599]
[1769973924612,2.48520877,2342.4,2341.4,2.45482599]
[1769973932811,2.48097771,2342.7,2341.8,2.45043728]
[1769973933916,2.48408392,2342.7,2341.8,2.45043728]
[1769973934616,0.00310621,2342.7,2341.8,2.45043728]
[1769973934818,2.48408392,2342.7,2341.8,2.45043728]
[1769973936814,2.48097771,2343.2,2341.8,2.66414728]
[1769973937014,2.48097771,2343.7,2342.7,2.45043728]
[1769973937314,2.48097771,2344.0,2342.9,2.45043728]
[1769973939011,2.48097771,2344.0,2343.1,2.36543832]
[1769973939213,2.31350781,2344.3,2343.1,2.37054869]
[1769973940522,2.31350781,2344.3,2343.1,0.00511037]
[1769973941221,2.31350781,2344.1,2342.5,2.506]
[1769973942120,2.31350781,2344.1,2342.5,2.51003743]
[1769973942318,2.31350781,2344.1,2342.6,2.36543832]
[1769973942516,2.31350781,2344.1,2342.7,2.36543832]
[1769973947624,2.31350781,2344.1,2342.8,2.45439629]
[1769973953530,2.52700781,2344.1,2342.8,2.45439629]
[1769973953734,2.29069167,2343.9,2342.6,6.29839629]
[1769973953932,2.29069167,2343.9,2342.6,5.67639629]
[1769973954428,2.50421167,2343.9,2342.5,0.00403743]
[1769973955828,2.50426167,2343.4,2342.5,0.00403743]
[1769973956032,2.29069167,2343.0,2341.5,2.45439629]
[1769973956930,2.50429167,2343.0,2341.5,2.45938543]
[1769973957233,2.29069167,2342.6,2341.5,0.00498914]
[1769973957532,2.29468505,2342.6,2341.5,0.00498914]
[1769973958435,0.21366,2342.3,2341.5,0.00498914]
[1769973958637,2.29069167,2342.2,2341.5,0.00498914]
[1769973963151,2.29069167,2341.9,2340.4,2.45439629]
[1769973963352,2.50440167,2341.9,2340.4,2.45439629]
[1769973963840,2.29069167,2341.6,2340.4,2.45439629]
[1769973964041,2.50442167,2341.6,2340.2,2.45439629]
[1769973964246,2.50442167,2341.6,2340.2,2.45864421]
[1769973964648,2.29069167,2341.2,2340.2,0.00424792]
[1769973965148,2.50446167,2341.2,2339.6,2.45439629]
[1769973965344,2.50446167,2341.2,2339.7,2.45439629]
[1769973966150,2.50446167,2341.2,2339.7,2.45785048]
[1769973966951,2.29069167,2341.2,2339.7,0.00345419]
[1769973967959,2.27549308,2340.7,2339.1,2.36215422]
[1769973968250,2.27549308,2340.7,2339.4,2.36215422]
[1769973969060,2.27979439,2340.7,2339.4,2.36613288]
[1769973970955,0.00430131,2340.7,2339.8,2.36215422]
[1769973977658,2.27979439,2340.7,2339.5,2.36215422]
[1769973982465,0.00430131,2340.7,2339.5,2.36215422]
[1769973983165,0.00430131,2340.7,2339.7,2.36215422]
[1769973983463,0.00430131,2340.7,2339.9,2.36215422]
[1769973984664,1.77979439,2340.9,2339.9,2.36215422]
[1769973984968,0.21376,2341.3,2339.9,2.36215422]
[1769973985766,0.21776743,2341.3,2339.9,2.36215422]
[1769973985970,0.00400743,2341.3,2340.1,2.36215422]
[1769973986468,0.00400743,2341.3,2340.3,2.36215422]
[1769973986768,2.27549308,2341.2,2340.1,2.36215422]
[1769973988568,0.00400743,2341.3,2340.1,4.88514033]
[1769973988772,0.00400743,2341.3,2340.2,2.36215422]
[1769973989068,2.27950051,2341.3,2340.3,2.36215422]
[1769973989363,2.27950051,2341.3,2340.0,2.36215422]
[1769973990264,2.27950051,2341.3,2339.8,8.9525342]
[1769973990464,0.00400743,2341.3,2339.7,2.57605422]
[1769973990665,2.27950051,2341.3,2340.1,2.36215422]
[1769973991267,0.00400743,2341.3,2340.3,2.36215422]
[1769973991566,2.27549308,2341.6,2340.5,2.36215422]
[1769973991770,2.27549308,2342.0,2340.7,2.36215422]
[1769973992471,2.27878762,2342.0,2340.5,2.52298611]
[1769973992669,2.27878762,2342.0,2340.4,4.88514033]
[1769973993369,2.27549308,2341.8,2340.4,2.36215422]
[1769973993567,2.27549308,2341.8,2340.4,6.44048986]
[1769973994862,2.27549308,2341.8,2340.4,2.36215422]
[1769973995065,2.27549308,2341.8,2340.4,6.44053457]
[1769973995369,2.27549308,2341.8,2340.5,2.36215422]
[1769973998668,0.00329454,2342.0,2340.5,2.36215422]
[1769973998669,0.00329454,2342.0,2340.5,4.9171013]
[1769973998871,0.00329454,2342.0,2341.0,4.90693902]
[1769973999177,0.00329454,2342.0,2341.2,2.35199194]
[1769973999469,2.37508019,2342.0,2341.2,2.35593337]
[1769974002476,2.37178565,2342.5,2341.2,2.35593337]
[1769974002675,2.37178565,2342.5,2341.3,2.35199194]
[1769974003075,2.37178565,2342.5,2341.3,5.58699194]
[1769974003473,2.37618594,2342.5,2341.3,5.58699194]
[1769974004274,2.37618594,2342.5,2341.3,3.235]
[1769974004480,2.37618594,2342.5,2341.4,2.35199194]
[1769974005281,0.00440029,2342.5,2341.4,2.35199194]
[1769974006275,2.36385082,2342.5,2341.4,2.35199194]
[1769974006481,2.36385082,2342.5,2341.5,3.238]
[1769974006880,2.36385082,2342.5,2341.6,2.39704045]
[1769974007678,2.36385082,2342.5,2341.2,0.00394143]
[1769974007887,2.36385082,2342.5,2341.3,3.237]
[1769974009481,0.00440029,2342.5,2341.4,2.39704045]
[1769974010181,2.35945053,2343.2,2341.5,2.39704045]
[1769974010387,2.35945053,2343.2,2341.6,2.39704045]
[1769974010684,2.35945053,2343.2,2341.4,5.40061838]
[1769974010685,2.35945053,2343.5,2341.9,2.39704045]
[1769974010886,2.35945053,2343.5,2342.1,2.39704045]
[1769974011383,2.35945053,2343.5,2342.0,9.12263708]
[1769974011384,2.36274139,2343.5,2342.2,2.39704045]
[1769974013587,0.00329086,2343.5,2342.2,2.39704045]
[1769974015692,0.00329086,2343.5,2342.2,4.95198753]
[1769974015893,2.35945053,2344.1,2342.3,2.39704045]
[1769974016089,2.35945053,2344.1,2342.6,2.39704045]
[1769974016386,2.35945053,2344.1,2342.8,2.39704045]
[1769974017090,2.36199515,2344.1,2342.8,2.39704045]
[1769974017595,0.00254462,2344.1,2342.8,2.39704045]
[1769974017987,0.00254462,2344.1,2342.9,2.39704045]
[1769974018186,0.00254462,2344.1,2343.1,2.39704045]
[1769974018995,2.36199515,2344.1,2343.1,2.39704045]
[1769974019196,2.36199515,2344.1,2343.2,2.506]
[1769974020992,2.36199515,2344.1,2342.9,2.40096195]
[1769974021294,2.36199515,2344.1,2343.1,2.39704045]
[1769974025299,2.36199515,2344.1,2343.2,2.505]
[1769974025890,2.36199515,2344.1,2343.2,4.90204045]
[1769974026296,2.36199515,2344.1,2343.2,2.505]
[1769974027900,2.57549515,2344.1,2342.9,0.0039215]
[1769974028102,2.36199515,2344.1,2342.9,2.3641453]
[1769974028800,0.00254462,2344.1,2342.9,2.3641453]
[1769974029397,2.31984336,2344.7,2343.1,2.3602238]
[1769974029606,2.31984336,2345.0,2343.4,2.3602238]
[1769974029805,2.31984336,2345.0,2343.6,2.3602238]
[1769974030002,2.31984336,2345.0,2343.7,2.836]
[1769974030203,2.31984336,2345.0,2343.6,4.9802238]
[1769974031007,2.31984336,2345.0,2343.7,2.3602238]
[1769974031608,2.31984336,2345.0,2343.6,2.62]
[1769974032108,2.31984336,2345.0,2343.6,4.9802238]
[1769974032912,2.53326336,2345.0,2343.6,2.62]
[1769974033607,2.53326336,2345.0,2343.6,4.9802238]
[1769974033808,2.53326336,2345.0,2343.7,2.3602238]
[1769974034004,2.53326336,2345.0,2343.6,2.62]
[1769974034809,2.53326336,2345.0,2343.7,2.3602238]
[1769974035603,2.31984336,2344.8,2343.6,2.62]
[1769974035810,2.31984336,2344.8,2343.5,3.844]
[1769974037211,2.31984336,2344.5,2343.5,3.844]
[1769974040008,2.31984336,2344.3,2343.5,3.844]
[1769974040807,2.31984336,2344.6,2343.6,2.3602238]
[1769974041013,2.31984336,2345.1,2343.7,2.3602238]
[1769974041207,6.31164117,2345.5,2343.9,2.3602238]
[1769974041405,6.31164117,2345.5,2343.8,6.60910011]
[1769974041406,2.31984336,2345.4,2344.3,2.3602238]
[1769974041609,2.31984336,2345.7,2344.4,2.3602238]
[1769974042109,2.31984336,2346.0,2344.6,2.3602238]
[1769974042308,2.31984336,2346.3,2344.8,4.91517088]
[1769974042516,2.31984336,2346.6,2345.1,2.3602238]
[1769974042711,2.31984336,2346.6,2345.2,2.3602238]
[1769974044209,2.53312336,2346.6,2345.2,2.3602238]
[1769974044410,2.31984336,2346.4,2345.0,2.96]
[1769974044607,2.53313336,2346.4,2345.0,2.96]
[1769974045016,2.53313336,2346.4,2345.1,2.3602238]
[1769974046914,2.53313336,2346.4,2345.0,2.96]
[1769974047512,2.31984336,2346.4,2345.1,2.3602238]
[1769974048622,2.31984336,2346.9,2345.1,2.3602238]
[1769974049723,0.21326,2346.7,2345.1,2.3602238]
[1769974050023,2.31984336,2346.6,2345.1,2.3602238]
[1769974050227,2.31984336,2346.6,2345.2,4.8632238]
[1769974050921,2.31984336,2346.6,2345.3,2.3602238]
[1769974053321,2.31984336,2346.4,2345.3,2.3602238]
[1769974053517,2.31984336,2346.4,2345.2,2.503]
[1769974053918,2.31984336,2346.4,2345.2,4.8632238]
[1769974054115,2.31984336,2346.4,2345.3,2.3602238]
[1769974054626,0.21328,2346.5,2345.3,2.3602238]
[1769974054827,2.31984336,2346.7,2345.5,2.3602238]
[1769974056820,2.31984336,2347.0,2345.5,2.3602238]
[1769974057426,2.53308336,2347.0,2345.5,2.3602238]
[1769974059123,2.47272726,2345.7,2344.7,2.55494708]
[1769974059320,2.47272726,2346.7,2344.6,2.27795135]
[1769974060426,2.47272726,2346.1,2344.6,2.27795135]
[1769974061228,2.47272726,2345.9,2344.6,2.27795135]
[1769974062022,2.47272726,2345.7,2344.6,2.27795135]
[1769974062224,2.47272726,2345.7,2344.6,0.00541156]
[1769974062525,2.47272726,2345.4,2344.3,3.84]
[1769974062729,2.47272726,2345.4,2343.4,5.08008605]
[1769974062730,2.47272726,2345.4,2343.8,2.27253979]
[1769974062934,2.47272726,2345.2,2343.8,2.27253979]
[1769974063633,2.47724554,2345.2,2343.8,2.27582457]
[1769974063825,2.47724554,2345.2,2343.9,2.502]
[1769974064020,2.47724554,2345.2,2343.9,8.61453979]
[1769974064721,2.47272726,2344.9,2343.8,0.00328478]
[1769974065331,2.50797922,2344.4,2343.5,3.84]
[1769974065932,2.29449922,2344.2,2343.5,3.84]
[1769974066326,2.29449922,2344.2,2342.9,2.27182656]
[1769974066527,2.29449922,2344.0,2342.9,4.77482656]
[1769974067122,2.29449922,2342.8,2341.6,2.55494708]
[1769974067331,2.29449922,2342.7,2341.6,2.27559182]
[1769974069029,2.29449922,2342.7,2341.6,0.00376526]
[1769974069229,2.29449922,2342.5,2341.6,0.00376526]
[1769974070134,2.50814922,2342.5,2341.6,0.00376526]
[1769974071030,2.50816922,2342.3,2340.7,2.27182656]
[1769974071233,2.29449922,2342.3,2340.8,8.61782656]
[1769974071432,2.29449922,2342.2,2340.8,8.61782656]
[1769974071935,2.29449922,2342.2,2340.9,2.27182656]
[1769974072132,2.29449922,2342.2,2340.9,0.00546748]
[1769974072437,2.50819922,2341.9,2340.9,0.00546748]
[1769974072731,0.00416829,2342.8,2341.7,2.27182656]
[1769974072927,0.21359,2343.2,2341.9,2.27182656]
[1769974073936,0.21809224,2343.2,2341.9,2.27718781]
[1769974074738,2.29449922,2343.1,2341.9,2.27718781]
[1769974078941,2.29449922,2342.8,2341.9,0.00536125]
[1769974079140,2.29449922,2342.8,2341.3,2.27182656]
[1769974079443,2.29449922,2342.8,2341.4,2.27182656]
[1769974079642,4.79949922,2343.1,2341.4,2.27182656]
[1769974080043,4.79949922,2343.1,2341.4,2.27686136]
[1769974080537,2.29449922,2343.0,2341.4,2.27686136]
[1769974081139,2.50809922,2343.0,2341.4,2.27686136]
[1769974081337,2.29449922,2342.6,2341.4,2.27686136]
[1769974081943,2.29449922,2342.2,2341.4,0.0050348]
[1769974082142,2.29449922,2342.0,2341.0,2.27182656]
[1769974082541,0.21366,2342.3,2341.0,2.27182656]
[1769974082542,5.12815922,2342.3,2341.0,2.27182656]
[1769974082837,2.50815922,2342.3,2341.0,2.27182656]
[1769974083241,2.50815922,2342.3,2341.0,2.27640961]
[1769974089738,2.63464544,2342.1,2341.0,0.00458305]
[1769974089939,2.42096544,2341.9,2341.0,0.00458305]
[1769974090640,2.42096544,2341.9,2340.4,2.48652358]
[1769974090846,2.42096544,2341.0,2339.8,2.48652358]
[1769974091045,2.42096544,2340.9,2339.8,2.48652358]
[1769974091749,2.42542069,2340.9,2339.8,2.49177379]
[1769974092142,0.00445525,2340.9,2339.8,2.49177379]
[1769974093341,0.21373,2341.6,2340.1,2.48652358]
[1769974093544,2.63469544,2341.6,2340.1,2.48652358]
[1769974094245,2.63983212,2341.6,2340.1,2.48652358]
[1769974095749,5.14683212,2341.6,2340.1,2.48652358]
[1769974096546,2.42096544,2341.5,2340.1,2.48652358]
[1769974099155,2.42096544,2341.0,2339.8,0.00525021]
[1769974099356,2.63474544,2341.0,2339.8,0.00525021]
[1769974102053,2.42096544,2341.0,2339.2,0.21394]
[1769974102252,2.42096544,2340.7,2339.3,2.48652358]
[1769974102448,4.92796544,2340.7,2339.3,2.48652358]
[1769974102951,6.31677785,2341.6,2338.8,2.51004486]
[1769974102952,2.42096544,2341.0,2339.5,2.70043358]
[1769974103159,2.42096544,2341.3,2339.8,2.48652358]
[1769974108763,2.42096544,2341.3,2339.9,2.48652358]
[1769974109065,2.42096544,2341.1,2339.6,2.48652358]
[1769974109265,2.42096544,2340.9,2339.6,2.48652358]
[1769974109968,2.42096544,2340.9,2339.5,0.00393211]
[1769974110570,2.42096544,2340.4,2339.0,2.48652358]
[1769974110770,2.42096544,2340.2,2339.0,2.48652358]
[1769974111672,2.42096544,2340.2,2339.0,2.49197306]
[1769974111865,2.63479544,2340.5,2339.0,2.49197306]
[1769974112771,2.42096544,2340.5,2339.0,2.49197306]
[1769974115568,2.42096544,2340.5,2339.1,2.48652358]
[1769974116769,2.63476544,2340.8,2339.1,4.99656844]
[1769974117071,2.63476544,2340.8,2339.2,2.48652358]
[1769974119167,2.3107464,2340.7,2339.2,2.48652358]
[1769974119465,2.3107464,2340.7,2339.3,2.40081337]
[1769974123168,2.3107464,2341.0,2339.7,2.40081337]
[1769974123374,2.3107464,2341.3,2339.8,2.40081337]
[1769974125473,2.26661566,2341.2,2339.8,2.40081337]
[1769974130473,2.26661566,2341.2,2339.8,2.61470337]
[1769974130674,2.26661566,2341.5,2340.1,2.32439526]
[1769974131680,0.00513668,2341.6,2340.5,2.32439526]
[1769974132884,2.27175234,2341.6,2340.5,2.32439526]
[1769974136978,0.00513668,2341.6,2340.5,2.32439526]
[1769974137184,2.26661566,2342.2,2340.5,2.32439526]
[1769974138283,2.27012836,2342.2,2340.5,2.32439526]
[1769974141187,2.48030566,2342.0,2340.5,2.32439526]
[1769974141586,2.26661566,2341.8,2340.5,2.32439526]
[1769974142690,2.48032566,2341.8,2340.2,2.32439526]
[1769974142890,2.26661566,2341.8,2340.2,2.32439526]
[1769974143190,2.26661566,2341.8,2340.2,2.53824526]
[1769974146992,2.26661566,2341.8,2340.2,2.32439526]
[1769974147195,2.48032566,2341.8,2340.2,2.32439526]
[1769974149199,2.39657684,2341.7,2340.2,2.32439526]
[1769974151301,2.39657684,2341.6,2340.2,2.32439526]
[1769974152403,2.39657684,2341.0,2339.8,2.43947646]
[1769974152900,2.39657684,2340.8,2339.6,2.43947646]
[1769974158998,6.31164117,2341.3,2339.6,2.43947646]
[1769974159205,2.39657684,2341.3,2340.0,2.43947646]
[1769974159408,2.39657684,2341.3,2340.1,2.43947646]
[1769974162407,2.39657684,2341.3,2340.2,2.43947646]
[1769974163603,2.39657684,2341.3,2339.9,4.94747646]
[1769974164708,2.39657684,2341.3,2340.0,2.43947646]
[1769974164910,2.39657684,2341.2,2340.0,2.43947646]
[1769974175011,8.70821801,2341.4,2340.0,2.43947646]
[1769974175214,2.39657684,2341.4,2340.1,2.43947646]
[1769974178322,2.37650503,2341.3,2340.1,2.43947646]
[1769974183323,2.37650503,2341.2,2340.1,2.43947646]
[1769974183524,2.37650503,2341.0,2340.1,2.43947646]
[1769974183825,2.37650503,2341.3,2340.1,2.43947646]
[1769974184721,5.81324503,2341.5,2340.1,2.43947646]
[1769974185425,5.81324503,2341.5,2340.2,2.34080081]
[1769974185826,2.27093124,2341.4,2340.2,2.34080081]
[1769974187925,2.27093124,2341.4,2340.3,2.34080081]
[1769974190124,2.27093124,2341.6,2340.3,4.89893344]
[1769974190426,2.27093124,2341.6,2340.5,2.34080081]
[1769974191825,2.508,2341.9,2340.5,2.34080081]
[1769974191826,2.27093124,2341.9,2340.6,2.34080081]
[1769974192124,2.27093124,2342.1,2340.8,2.34080081]
[1769974192328,2.27093124,2342.1,2340.8,2.34482982]
[1769974194332,2.27093124,2341.9,2340.8,2.34482982]
[1769974195426,8.58257241,2342.1,2340.8,2.34482982]
[1769974195628,2.27093124,2342.0,2340.8,2.34482982]
[1769974197434,2.27093124,2342.0,2340.9,2.34080081]
[1769974199128,2.48811394,2342.2,2340.9,2.34080081]
[1769974200834,2.27093124,2342.0,2340.9,2.34080081]
[1769974201236,2.27093124,2341.8,2340.8,0.00402901]
[1769974201434,0.0035127,2342.2,2340.8,0.00402901]
[1769974201435,2.27093124,2341.5,2340.8,0.00402901]
[1769974202337,2.27093124,2341.7,2340.8,2.34482982]
[1769974202534,2.27093124,2341.9,2340.9,2.34080081]
[1769974202733,2.27444394,2342.2,2340.9,2.34080081]
[1769974203037,2.27444394,2342.2,2341.0,2.34080081]
[1769974203534,2.27444394,2342.2,2341.2,2.34080081]
[1769974203535,0.0035127,2342.2,2341.2,2.34080081]
[1769974203729,8.58257241,2342.8,2341.6,2.34080081]
[1769974203935,2.27093124,2342.8,2341.7,2.34080081]
[1769974204129,2.27093124,2342.6,2341.5,2.34080081]
[1769974204739,2.27565505,2342.6,2341.5,2.34080081]
[1769974205038,2.48459124,2342.4,2341.0,2.34080081]
[1769974205237,2.27093124,2342.2,2340.8,2.34482982]
[1769974205537,2.48460124,2342.2,2340.8,2.34482982]
[1769974206131,2.27093124,2342.2,2340.8,2.34482982]
[1769974210640,2.27093124,2342.2,2340.9,2.48781247]
[1769974211342,8.80476553,2342.6,2341.1,2.48781247]
[1769974211538,2.49312436,2342.6,2341.1,2.48781247]
[1769974213941,2.49312436,2342.6,2341.2,2.48781247]
[1769974217945,0.00472381,2342.6,2341.5,5.0459451]
[1769974218145,0.00472381,2342.6,2341.7,2.48781247]
[1769974219543,2.49312436,2342.6,2341.7,2.48781247]
[1769974220245,2.49312436,2342.6,2341.4,6.33381247]
[1769974220445,2.49312436,2342.6,2341.4,3.846]
[1769974220945,2.49312436,2342.6,2341.2,2.48781247]
[1769974221246,2.48840055,2342.5,2341.1,3.306]
[1769974221450,2.48840055,2342.4,2341.1,3.306]
[1769974221642,2.48840055,2342.4,2341.2,2.48781247]
[1769974222744,0.00472381,2342.6,2341.2,2.48781247]
[1769974223044,2.49312436,2342.6,2341.2,2.48781247]
[1769974223445,2.49312436,2342.6,2341.3,2.48781247]
[1769974224047,0.00472381,2342.6,2341.4,9.01058615]
[1769974224248,0.00472381,2342.6,2341.5,2.48781247]
[1769974227149,2.49312436,2342.6,2341.5,2.48781247]
[1769974227345,0.00472381,2342.6,2341.5,2.48781247]
[1769974230049,0.00472381,2342.6,2341.7,2.48781247]
[1769974230350,2.48840055,2343.1,2341.9,2.48781247]
[1769974231248,2.49164482,2343.1,2341.9,2.48781247]
[1769974233651,2.49164482,2343.1,2342.1,2.48781247]
[1769974234550,2.49164482,2343.1,2341.8,5.80481247]
[1769974234847,2.49164482,2343.1,2341.9,2.48781247]
[1769974238050,2.28047928,2343.0,2341.9,2.48781247]
[1769974239251,2.28047928,2343.0,2341.6,6.23672939]
[1769974239452,2.28047928,2343.0,2341.7,2.27237065]
[1769974239850,2.28047928,2342.9,2341.7,2.27237065]
[1769974245556,2.57264076,2343.1,2341.9,2.38628083]
[1769974246157,2.57264076,2343.1,2342.1,2.38628083]
[1769974246158,2.35580649,2343.0,2342.1,2.38628083]
[1769974246957,0.00324427,2343.1,2342.2,2.38628083]
[1769974247161,2.35905076,2343.1,2342.2,2.38628083]
[1769974255157,0.00324427,2343.1,2342.2,2.38628083]
[1769974255661,17.82903148,2343.9,2342.6,2.38628083]
[1769974255963,2.35580649,2343.8,2342.8,2.38628083]
[1769974256561,7.44237116,2343.7,2342.8,2.39140211]
[1769974258460,2.35580649,2343.7,2342.8,2.39140211]
[1769974258864,5.08958829,2343.8,2342.8,2.39140211]
[1769974258865,0.00302362,2343.8,2342.8,2.39140211]
[1769974259464,2.35883011,2343.8,2342.8,2.39140211]
[1769974260761,0.00302362,2343.8,2342.8,2.39140211]
[1769974262369,2.35580649,2344.4,2342.9,2.38628083]
[1769974262566,2.35580649,2344.4,2343.2,2.38628083]
[1769974262866,2.35580649,2344.6,2343.4,2.38628083]
[1769974263262,2.36002877,2344.6,2343.4,2.38628083]
[1769974264469,0.00422228,2344.6,2343.4,2.38628083]
[1769974264766,2.36002877,2344.6,2343.5,2.38628083]
[1769974264963,2.35580649,2344.3,2342.8,4.94953474]
[1769974265163,2.56930649,2344.1,2342.8,2.39140211]
[1769974268874,2.39177127,2344.0,2342.8,2.39140211]
[1769974270271,2.39177127,2344.0,2342.8,0.00512128]
[1769974270473,2.39177127,2343.2,2342.0,2.55813263]
[1769974270776,2.39177127,2342.6,2341.2,2.43692883]
[1769974271172,2.39177127,2342.6,2341.6,2.43692883]
[1769974271475,2.39486986,2342.6,2341.6,2.44189931]
[1769974271678,2.39486986,2342.6,2341.7,3.844]
[1769974272973,2.39486986,2342.6,2341.7,6.28092883]
[1769974273166,2.39486986,2342.6,2342.0,2.43692883]
[1769974273167,0.00309859,2342.6,2342.0,2.43692883]
[1769974273565,0.00309859,2342.6,2342.0,6.28092883]
[1769974275368,2.39486986,2342.6,2342.0,3.844]
[1769974275572,2.39486986,2342.6,2341.6,0.00497048]
[1769974276075,2.505,2342.5,2341.6,0.00497048]
[1769974276276,2.39177127,2342.4,2341.1,2.43692883]
[1769974276676,2.39177127,2342.1,2340.9,3.844]
[1769974276874,2.39177127,2342.1,2340.9,6.28092883]
[1769974277375,2.39177127,2342.1,2340.9,6.28587817]
[1769974278375,2.39177127,2342.1,2341.0,2.43692883]
[1769974278670,1.89177127,2342.1,2341.0,2.43692883]
[1769974282173,0.21367,2342.2,2341.2,2.43692883]
[1769974282369,0.21367,2342.2,2341.4,2.43692883]
[1769974282573,2.39177127,2342.3,2341.5,2.43692883]
[1769974282779,2.39177127,2342.5,2341.7,2.43692883]
[1769974283274,2.39177127,2342.5,2341.7,6.28092883]